[Event "Titled Tuesday Blitz May 2 Early 2023"]
[White "Albornoz Cabrera, Carlos Daniel"]
[Black "Suleymanli, Aydin"]
[WhiteFideId "3518736"]
[BlackFideId "13413937"]
[WhiteElo "2516"]
[BlackElo "2559"]
[Result "1-0"]
[Round "05"]
[TimeControl "180+2"]
[Date "2023.05.02"]
[WhiteClock "0:00:09"]
[BlackClock "0:00:01"]

1. e4 {[%clk 0:03:00]}  e5 {[%clk 0:02:58]} 2. Nf3 {[%clk 0:03:00]}  Nc6 {[%clk 0:02:57]} 3. Bc4 {[%clk 0:03:00]}  Nf6 {[%clk 0:02:56]} 4. d3 {[%clk 0:02:59]}  h6 {[%clk 0:02:55]} 5. O-O {[%clk 0:02:59]}  Bc5 {[%clk 0:02:54]} 6. c3 {[%clk 0:02:58]}  d6 {[%clk 0:02:52]} 7. a4 {[%clk 0:02:57]}  a5 {[%clk 0:02:51]} 8. Na3 {[%clk 0:02:57]}  O-O {[%clk 0:02:49]} 9. Nc2 {[%clk 0:02:57]}  Ba7 {[%clk 0:02:41]} 10. Be3 {[%clk 0:02:57]}  Ne7 {[%clk 0:02:40]} 11. Bxa7 {[%clk 0:02:56]}  Rxa7 {[%clk 0:02:41]} 12. Re1 {[%clk 0:02:55]}  Ng6 {[%clk 0:02:41]} 13. h3 {[%clk 0:02:54]}  Qe7 {[%clk 0:02:31]} 14. Ne3 {[%clk 0:02:53]}  c6 {[%clk 0:02:31]} 15. Nf1 {[%clk 0:02:45]}  Nh5 {[%clk 0:02:24]} 16. N3h2 {[%clk 0:02:32]}  Nhf4 {[%clk 0:02:22]} 17. Nf3 {[%clk 0:02:23]}  Qf6 {[%clk 0:02:18]} 18. Kh2 {[%clk 0:02:21]}  d5 {[%clk 0:01:38]} 19. Ba2 {[%clk 0:02:19]}  dxe4 {[%clk 0:01:17]} 20. Rxe4 {[%clk 0:02:20]}  Bf5 {[%clk 0:01:06]} 21. Re3 {[%clk 0:02:14]}  Rd8 {[%clk 0:01:04]} 22. d4 {[%clk 0:02:11]}  exd4 {[%clk 0:01:02]} 23. cxd4 {[%clk 0:02:09]}  Be6 {[%clk 0:01:01]} 24. Bxe6 {[%clk 0:01:51]}  Nxe6 {[%clk 0:01:02]} 25. Re4 {[%clk 0:01:51]}  c5 {[%clk 0:00:27]} 26. d5 {[%clk 0:01:45]}  Qf5 {[%clk 0:00:16]} 27. Qe1 {[%clk 0:01:24]}  Qxd5 {[%clk 0:00:14]} 28. Ng3 {[%clk 0:01:21]}  b6 {[%clk 0:00:13]} 29. Ne5 {[%clk 0:01:10]}  Nef4 {[%clk 0:00:02]} 30. Nxg6 {[%clk 0:01:00]}  Nxg6 {[%clk 0:00:02]} 31. Ra3 {[%clk 0:00:52]}  Rad7 {[%clk 0:00:02]} 32. Rf3 {[%clk 0:00:50]}  Kh7 {[%clk 0:00:02]} 33. Nf5 {[%clk 0:00:46]}  Qc6 {[%clk 0:00:01]} 34. Rg4 {[%clk 0:00:38]}  Qc7+ {[%clk 0:00:01]} 35. g3 {[%clk 0:00:35]}  Rd5 {[%clk 0:00:01]} 36. Qc3 {[%clk 0:00:33]}  Qe5 {[%clk 0:00:02]} 37. Qb3 {[%clk 0:00:25]}  Rd2 {[%clk 0:00:01]} 38. Qxf7 {[%clk 0:00:24]}  Rf8 {[%clk 0:00:01]} 39. Qxg6+ {[%clk 0:00:24]}  Kh8 {[%clk 0:00:01]} 40. Kg2 {[%clk 0:00:13]}  Qxb2 {[%clk 0:00:01]} 41. Qxg7+ {[%clk 0:00:09]}  Qxg7 {[%clk 0:00:01]} 42. Nxg7 {[%clk 0:00:10]}  Rxf3 {[%clk 0:00:02]} 43. Kxf3 {[%clk 0:00:11]}  c4 {[%clk 0:00:03]} 44. Nf5 {[%clk 0:00:08]}  c3 {[%clk 0:00:03]} 45. Rc4 {[%clk 0:00:08]}  c2 {[%clk 0:00:01]} 46. Ne3 {[%clk 0:00:09]} 1-0


[Site "https://www.chess.com"]

[Event "Titled Tuesday Blitz May 2 Early 2023"]
[White "Lamaze, Simon"]
[Black "Dardha, Daniel"]
[WhiteFideId "36069264"]
[BlackFideId "240990"]
[WhiteElo "2272"]
[BlackElo "2581"]
[Result "1-0"]
[Round "05"]
[TimeControl "180+2"]
[Date "2023.05.02"]
[WhiteClock "0:00:22"]
[BlackClock "0:00:02"]

1. e4 {[%clk 0:03:00]}  c5 {[%clk 0:02:52]} 2. Nf3 {[%clk 0:02:44]}  e6 {[%clk 0:02:46]} 3. d4 {[%clk 0:02:44]}  cxd4 {[%clk 0:02:46]} 4. Nxd4 {[%clk 0:02:45]}  Nc6 {[%clk 0:02:45]} 5. Nc3 {[%clk 0:02:45]}  Bc5 {[%clk 0:02:46]} 6. Nb3 {[%clk 0:02:42]}  Bb6 {[%clk 0:02:41]} 7. Be2 {[%clk 0:02:36]}  Nf6 {[%clk 0:02:39]} 8. Bf4 {[%clk 0:02:20]}  d5 {[%clk 0:02:33]} 9. exd5 {[%clk 0:02:16]}  exd5 {[%clk 0:02:34]} 10. O-O {[%clk 0:02:13]}  O-O {[%clk 0:02:33]} 11. Bf3 {[%clk 0:02:10]}  Be6 {[%clk 0:02:33]} 12. Nb5 {[%clk 0:02:10]}  Ne4 {[%clk 0:02:31]} 13. N5d4 {[%clk 0:02:06]}  Qf6 {[%clk 0:02:29]} 14. Be3 {[%clk 0:02:03]}  Ne5 {[%clk 0:02:26]} 15. c3 {[%clk 0:01:55]}  Nc4 {[%clk 0:02:24]} 16. Bc1 {[%clk 0:01:50]}  Rfe8 {[%clk 0:02:22]} 17. a4 {[%clk 0:01:48]}  Rad8 {[%clk 0:02:09]} 18. a5 {[%clk 0:01:48]}  Bc7 {[%clk 0:02:09]} 19. a6 {[%clk 0:01:48]}  b6 {[%clk 0:02:00]} 20. Nc6 {[%clk 0:01:47]}  Ra8 {[%clk 0:01:36]} 21. Nbd4 {[%clk 0:01:47]}  Bd7 {[%clk 0:01:32]} 22. Nb4 {[%clk 0:01:46]}  Qd6 {[%clk 0:01:23]} 23. g3 {[%clk 0:01:47]}  Ne5 {[%clk 0:01:23]} 24. Bg2 {[%clk 0:01:45]}  Ng6 {[%clk 0:01:15]} 25. Qd3 {[%clk 0:01:40]}  Nc5 {[%clk 0:01:14]} 26. Qc2 {[%clk 0:01:38]}  Ne4 {[%clk 0:01:11]} 27. Qd3 {[%clk 0:01:38]}  Rad8 {[%clk 0:01:10]} 28. Nb5 {[%clk 0:01:33]}  Bxb5 {[%clk 0:01:08]} 29. Qxb5 {[%clk 0:01:34]}  h5 {[%clk 0:01:06]} 30. Rd1 {[%clk 0:01:29]}  Qf6 {[%clk 0:00:35]} 31. Be3 {[%clk 0:01:26]}  Ne7 {[%clk 0:00:14]} 32. Nxd5 {[%clk 0:01:24]}  Nxd5 {[%clk 0:00:14]} 33. Rxd5 {[%clk 0:01:25]}  Bb8 {[%clk 0:00:04]} 34. Rxd8 {[%clk 0:01:23]}  Qxd8 {[%clk 0:00:05]} 35. Qxh5 {[%clk 0:01:20]}  Nf6 {[%clk 0:00:04]} 36. Qf5 {[%clk 0:01:19]}  Bd6 {[%clk 0:00:04]} 37. Bf3 {[%clk 0:01:19]}  Qc7 {[%clk 0:00:04]} 38. Kg2 {[%clk 0:01:17]}  Re5 {[%clk 0:00:05]} 39. Qd3 {[%clk 0:01:16]}  g6 {[%clk 0:00:04]} 40. Rd1 {[%clk 0:01:16]}  Re6 {[%clk 0:00:04]} 41. b4 {[%clk 0:01:11]}  Kg7 {[%clk 0:00:04]} 42. Bd4 {[%clk 0:01:09]}  Be5 {[%clk 0:00:05]} 43. Bxe5 {[%clk 0:01:05]}  Rxe5 {[%clk 0:00:05]} 44. c4 {[%clk 0:01:04]}  Rf5 {[%clk 0:00:03]} 45. Re1 {[%clk 0:00:53]}  Qc8 {[%clk 0:00:02]} 46. b5 {[%clk 0:00:50]}  Qc5 {[%clk 0:00:02]} 47. Re3 {[%clk 0:00:49]}  g5 {[%clk 0:00:02]} 48. h3 {[%clk 0:00:49]}  Re5 {[%clk 0:00:01]} 49. Rxe5 {[%clk 0:00:48]}  Qxe5 {[%clk 0:00:02]} 50. Qd8 {[%clk 0:00:38]}  Qf5 {[%clk 0:00:01]} 51. Qc7 {[%clk 0:00:35]}  Ne4 {[%clk 0:00:02]} 52. c5 {[%clk 0:00:26]}  Nxc5 {[%clk 0:00:01]} 53. Qxa7 {[%clk 0:00:26]}  Qc2 {[%clk 0:00:01]} 54. Qxb6 {[%clk 0:00:25]}  Nd3 {[%clk 0:00:02]} 55. Qd4+ {[%clk 0:00:25]}  Kg8 {[%clk 0:00:02]} 56. Be4 {[%clk 0:00:23]}  Ne1+ {[%clk 0:00:02]} 57. Kh2 {[%clk 0:00:24]}  Qe2 {[%clk 0:00:02]} 58. a7 {[%clk 0:00:22]} 1-0


[Site "https://www.chess.com"]

[Event "Titled Tuesday Blitz May 2 Early 2023"]
[White "Rakotomaharo, Fy Antenaina"]
[Black "Asis Gargatagli, Hipolito"]
[WhiteFideId "13100050"]
[BlackFideId "2260735"]
[WhiteElo "2427"]
[BlackElo "2557"]
[Result "1/2-1/2"]
[Round "05"]
[TimeControl "180+2"]
[Date "2023.05.02"]
[WhiteClock "0:00:14"]
[BlackClock "0:00:51"]

1. Nf3 {[%clk 0:03:00]}  f5 {[%clk 0:02:59]} 2. d3 {[%clk 0:03:00]}  d6 {[%clk 0:02:59]} 3. e4 {[%clk 0:03:00]}  e5 {[%clk 0:03:00]} 4. Nc3 {[%clk 0:03:00]}  Nc6 {[%clk 0:03:01]} 5. exf5 {[%clk 0:02:30]}  Nge7 {[%clk 0:03:00]} 6. d4 {[%clk 0:02:31]}  Nxd4 {[%clk 0:02:58]} 7. Nxd4 {[%clk 0:02:31]}  exd4 {[%clk 0:02:59]} 8. Qxd4 {[%clk 0:02:30]}  Nxf5 {[%clk 0:03:00]} 9. Qe4+ {[%clk 0:02:24]}  Qe7 {[%clk 0:03:00]} 10. Bd3 {[%clk 0:02:16]}  Qxe4+ {[%clk 0:02:53]} 11. Bxe4 {[%clk 0:02:14]}  c6 {[%clk 0:02:51]} 12. O-O {[%clk 0:02:12]}  d5 {[%clk 0:02:51]} 13. Bd3 {[%clk 0:02:09]}  Bd6 {[%clk 0:02:47]} 14. Bd2 {[%clk 0:02:08]}  Kf7 {[%clk 0:02:46]} 15. Rae1 {[%clk 0:02:04]}  Bd7 {[%clk 0:02:46]} 16. Ne2 {[%clk 0:02:04]}  Rae8 {[%clk 0:02:45]} 17. Ng3 {[%clk 0:02:03]}  Rxe1 {[%clk 0:02:31]} 18. Rxe1 {[%clk 0:02:01]}  Nxg3 {[%clk 0:02:31]} 19. hxg3 {[%clk 0:01:59]}  g6 {[%clk 0:02:31]} 20. c4 {[%clk 0:01:53]}  Be6 {[%clk 0:02:26]} 21. Bc3 {[%clk 0:01:38]}  Rd8 {[%clk 0:02:24]} 22. cxd5 {[%clk 0:01:36]}  Bxd5 {[%clk 0:02:24]} 23. b3 {[%clk 0:01:33]}  Be7 {[%clk 0:02:18]} 24. Rd1 {[%clk 0:01:20]}  Bf6 {[%clk 0:02:13]} 25. Bxf6 {[%clk 0:01:17]}  Kxf6 {[%clk 0:02:14]} 26. f3 {[%clk 0:01:11]}  Be6 {[%clk 0:02:06]} 27. Kf2 {[%clk 0:01:03]}  Bf5 {[%clk 0:02:04]} 28. Be2 {[%clk 0:01:03]}  Rxd1 {[%clk 0:02:04]} 29. Bxd1 {[%clk 0:01:04]}  c5 {[%clk 0:02:00]} 30. Ke3 {[%clk 0:01:04]}  Ke5 {[%clk 0:01:56]} 31. g4 {[%clk 0:00:58]}  Bb1 {[%clk 0:01:44]} 32. f4+ {[%clk 0:00:56]}  Kf6 {[%clk 0:01:44]} 33. g5+ {[%clk 0:00:53]}  Ke6 {[%clk 0:01:42]} 34. a3 {[%clk 0:00:51]}  b5 {[%clk 0:01:37]} 35. Be2 {[%clk 0:00:41]}  a6 {[%clk 0:01:37]} 36. a4 {[%clk 0:00:38]}  Bc2 {[%clk 0:01:30]} 37. axb5 {[%clk 0:00:37]}  axb5 {[%clk 0:01:30]} 38. Bxb5 {[%clk 0:00:37]}  Bxb3 {[%clk 0:01:31]} 39. g4 {[%clk 0:00:31]}  Bd1 {[%clk 0:01:27]} 40. Bc4+ {[%clk 0:00:31]}  Ke7 {[%clk 0:01:26]} 41. f5 {[%clk 0:00:27]}  Bxg4 {[%clk 0:01:25]} 42. f6+ {[%clk 0:00:27]}  Kf8 {[%clk 0:01:22]} 43. Kf4 {[%clk 0:00:27]}  Bd7 {[%clk 0:01:04]} 44. Ke5 {[%clk 0:00:22]}  Be8 {[%clk 0:01:04]} 45. Kd6 {[%clk 0:00:15]}  Bf7 {[%clk 0:01:04]} 46. Kxc5 {[%clk 0:00:16]}  Bxc4 {[%clk 0:01:02]} 47. Kxc4 {[%clk 0:00:17]}  Kf7 {[%clk 0:01:01]} 48. Kd5 {[%clk 0:00:15]}  h6 {[%clk 0:01:01]} 49. gxh6 {[%clk 0:00:15]}  Kxf6 {[%clk 0:01:01]} 50. Ke4 {[%clk 0:00:15]}  g5 {[%clk 0:00:50]} 51. h7 {[%clk 0:00:13]}  Kg7 {[%clk 0:00:51]} 52. Kf5 {[%clk 0:00:13]}  Kxh7 {[%clk 0:00:51]} 53. Kxg5 {[%clk 0:00:14]} 1/2-1/2


[Site "https://www.chess.com"]

[Event "Titled Tuesday Blitz May 2 Early 2023"]
[White "Bolourchifard, Farzad"]
[Black "Yu, Yangyi"]
[WhiteFideId "12510084"]
[BlackFideId "8603820"]
[WhiteElo "2317"]
[BlackElo "2783"]
[Result "0-1"]
[Round "05"]
[TimeControl "180+2"]
[Date "2023.05.02"]
[WhiteClock "0:00:27"]
[BlackClock "0:01:03"]

1. d4 {[%clk 0:03:00]}  Nf6 {[%clk 0:02:59]} 2. Nf3 {[%clk 0:03:01]}  e6 {[%clk 0:02:58]} 3. c4 {[%clk 0:03:00]}  h6 {[%clk 0:02:59]} 4. Nc3 {[%clk 0:03:00]}  Bb4 {[%clk 0:02:59]} 5. Bd2 {[%clk 0:02:57]}  d5 {[%clk 0:02:57]} 6. e3 {[%clk 0:02:57]}  O-O {[%clk 0:02:55]} 7. cxd5 {[%clk 0:02:55]}  exd5 {[%clk 0:02:55]} 8. Bd3 {[%clk 0:02:55]}  Re8 {[%clk 0:02:54]} 9. O-O {[%clk 0:02:55]}  Bd6 {[%clk 0:02:53]} 10. Nb5 {[%clk 0:02:28]}  Bf8 {[%clk 0:02:52]} 11. Ne5 {[%clk 0:02:28]}  a6 {[%clk 0:02:48]} 12. Nc3 {[%clk 0:02:28]}  c5 {[%clk 0:02:48]} 13. f4 {[%clk 0:02:29]}  Nc6 {[%clk 0:02:48]} 14. Ne2 {[%clk 0:02:24]}  cxd4 {[%clk 0:02:30]} 15. exd4 {[%clk 0:02:22]}  Bg4 {[%clk 0:02:30]} 16. Bc3 {[%clk 0:02:12]}  Qb6 {[%clk 0:02:29]} 17. h3 {[%clk 0:01:36]}  Bxe2 {[%clk 0:02:22]} 18. Qxe2 {[%clk 0:01:24]}  Nxd4 {[%clk 0:02:21]} 19. Bxd4 {[%clk 0:01:25]}  Qxd4+ {[%clk 0:02:20]} 20. Kh1 {[%clk 0:01:24]}  Bd6 {[%clk 0:02:11]} 21. Rad1 {[%clk 0:01:18]}  Bxe5 {[%clk 0:02:03]} 22. Bh7+ {[%clk 0:01:05]}  Nxh7 {[%clk 0:01:59]} 23. Rxd4 {[%clk 0:01:04]}  Bxd4 {[%clk 0:01:59]} 24. Qd3 {[%clk 0:01:00]}  Re4 {[%clk 0:01:56]} 25. Qb3 {[%clk 0:01:00]}  Nf6 {[%clk 0:01:39]} 26. Qxb7 {[%clk 0:01:00]}  Rae8 {[%clk 0:01:40]} 27. Qxa6 {[%clk 0:00:59]}  Nh5 {[%clk 0:01:39]} 28. Qd3 {[%clk 0:00:54]}  Be3 {[%clk 0:01:24]} 29. Rf3 {[%clk 0:00:41]}  Bxf4 {[%clk 0:01:22]} 30. g4 {[%clk 0:00:36]}  Ng3+ {[%clk 0:01:03]} 31. Rxg3 {[%clk 0:00:33]}  Bxg3 {[%clk 0:01:03]} 32. Qxg3 {[%clk 0:00:34]}  Re1+ {[%clk 0:01:03]} 33. Kg2 {[%clk 0:00:34]}  R8e2+ {[%clk 0:01:03]} 34. Qf2 {[%clk 0:00:27]}  Rxf2+ {[%clk 0:01:03]} 0-1


[Site "https://www.chess.com"]

[Event "Titled Tuesday Blitz May 2 Early 2023"]
[White "Colas, Joshua"]
[Black "Martinez Alcantara, Jose Eduardo"]
[WhiteFideId "2044447"]
[BlackFideId "3805662"]
[WhiteElo "2347"]
[BlackElo "2711"]
[Result "0-1"]
[Round "05"]
[TimeControl "180+2"]
[Date "2023.05.02"]
[WhiteClock "0:00:12"]
[BlackClock "0:00:37"]

1. Nf3 {[%clk 0:02:51]}  c5 {[%clk 0:03:00]} 2. c4 {[%clk 0:02:51]}  Nc6 {[%clk 0:02:59]} 3. Nc3 {[%clk 0:02:50]}  g6 {[%clk 0:02:59]} 4. d4 {[%clk 0:02:50]}  cxd4 {[%clk 0:02:59]} 5. Nxd4 {[%clk 0:02:51]}  Bg7 {[%clk 0:02:59]} 6. Nc2 {[%clk 0:02:51]}  d6 {[%clk 0:02:58]} 7. g3 {[%clk 0:02:51]}  Be6 {[%clk 0:02:57]} 8. Ne3 {[%clk 0:02:41]}  h5 {[%clk 0:02:57]} 9. h4 {[%clk 0:02:38]}  Ne5 {[%clk 0:02:56]} 10. Bg2 {[%clk 0:02:34]}  Qd7 {[%clk 0:02:49]} 11. Ncd5 {[%clk 0:02:26]}  Rc8 {[%clk 0:02:49]} 12. O-O {[%clk 0:02:20]}  Nxc4 {[%clk 0:02:37]} 13. Nxc4 {[%clk 0:02:20]}  Rxc4 {[%clk 0:02:38]} 14. Be3 {[%clk 0:02:21]}  Nf6 {[%clk 0:02:26]} 15. Nf4 {[%clk 0:02:14]}  b6 {[%clk 0:02:14]} 16. Nxe6 {[%clk 0:02:09]}  Qxe6 {[%clk 0:02:10]} 17. b3 {[%clk 0:01:47]}  Rc8 {[%clk 0:02:06]} 18. Qd3 {[%clk 0:01:45]}  O-O {[%clk 0:02:05]} 19. Rac1 {[%clk 0:01:43]}  Ng4 {[%clk 0:02:02]} 20. Bf4 {[%clk 0:01:24]}  Nf6 {[%clk 0:01:29]} 21. Qa6 {[%clk 0:01:12]}  Qd7 {[%clk 0:01:28]} 22. Bb7 {[%clk 0:01:06]}  Rb8 {[%clk 0:01:22]} 23. Bc6 {[%clk 0:01:01]}  Qh3 {[%clk 0:01:20]} 24. Bg2 {[%clk 0:00:59]}  Qd7 {[%clk 0:01:20]} 25. Bc6 {[%clk 0:00:59]}  Qe6 {[%clk 0:01:21]} 26. Qxa7 {[%clk 0:00:56]}  Kh7 {[%clk 0:01:19]} 27. Qa6 {[%clk 0:00:46]}  Bh6 {[%clk 0:01:19]} 28. Bxh6 {[%clk 0:00:41]}  Kxh6 {[%clk 0:01:20]} 29. Qd3 {[%clk 0:00:41]}  d5 {[%clk 0:01:17]} 30. Rfd1 {[%clk 0:00:37]}  Rfd8 {[%clk 0:01:17]} 31. b4 {[%clk 0:00:38]}  Kg7 {[%clk 0:01:14]} 32. a4 {[%clk 0:00:35]}  Rd6 {[%clk 0:01:10]} 33. b5 {[%clk 0:00:34]}  Qh3 {[%clk 0:01:10]} 34. Qf3 {[%clk 0:00:28]}  Rbd8 {[%clk 0:01:04]} 35. Qg2 {[%clk 0:00:27]}  Qe6 {[%clk 0:00:46]} 36. Qf3 {[%clk 0:00:21]}  Qh3 {[%clk 0:00:47]} 37. Qg2 {[%clk 0:00:21]}  Qg4 {[%clk 0:00:47]} 38. Ra1 {[%clk 0:00:17]}  Qxe2 {[%clk 0:00:45]} 39. Re1 {[%clk 0:00:18]}  Qb2 {[%clk 0:00:46]} 40. Rab1 {[%clk 0:00:18]}  Qa2 {[%clk 0:00:43]} 41. Ra1 {[%clk 0:00:19]}  Qb2 {[%clk 0:00:43]} 42. a5 {[%clk 0:00:16]}  bxa5 {[%clk 0:00:43]} 43. Rxa5 {[%clk 0:00:17]}  e5 {[%clk 0:00:41]} 44. Raa1 {[%clk 0:00:15]}  e4 {[%clk 0:00:41]} 45. Rab1 {[%clk 0:00:16]}  Qd4 {[%clk 0:00:39]} 46. Red1 {[%clk 0:00:16]}  Qb6 {[%clk 0:00:39]} 47. Qf1 {[%clk 0:00:14]}  Ng4 {[%clk 0:00:38]} 48. Qe2 {[%clk 0:00:12]}  Rf6 {[%clk 0:00:38]} 49. Rb2 {[%clk 0:00:12]}  Rxf2 {[%clk 0:00:37]} 0-1


[Site "https://www.chess.com"]

[Event "Titled Tuesday Blitz May 2 Early 2023"]
[White "Vidit, Santosh Gujrathi"]
[Black "Aldokhin, Ivan"]
[WhiteFideId "5029465"]
[BlackFideId "24115720"]
[WhiteElo "2651"]
[BlackElo "2322"]
[Result "1-0"]
[Round "05"]
[TimeControl "180+2"]
[Date "2023.05.02"]
[WhiteClock "0:00:05"]
[BlackClock "0:00:02"]

1. e4 {[%clk 0:03:00]}  c5 {[%clk 0:03:00]} 2. Nf3 {[%clk 0:03:00]}  e6 {[%clk 0:03:00]} 3. d4 {[%clk 0:02:57]}  cxd4 {[%clk 0:03:01]} 4. Nxd4 {[%clk 0:02:58]}  a6 {[%clk 0:03:01]} 5. a3 {[%clk 0:02:55]}  Nf6 {[%clk 0:03:00]} 6. Nc3 {[%clk 0:02:46]}  Qc7 {[%clk 0:02:52]} 7. Bd3 {[%clk 0:02:45]}  Bd6 {[%clk 0:02:44]} 8. Qe2 {[%clk 0:02:42]}  Nc6 {[%clk 0:02:38]} 9. Nxc6 {[%clk 0:02:35]}  dxc6 {[%clk 0:02:38]} 10. h3 {[%clk 0:02:28]}  b5 {[%clk 0:02:19]} 11. O-O {[%clk 0:02:27]}  Bb7 {[%clk 0:02:11]} 12. a4 {[%clk 0:02:25]}  O-O {[%clk 0:02:01]} 13. Bg5 {[%clk 0:02:24]}  e5 {[%clk 0:01:40]} 14. Bxf6 {[%clk 0:02:19]}  gxf6 {[%clk 0:01:40]} 15. Nd1 {[%clk 0:02:13]}  Kh8 {[%clk 0:01:28]} 16. Ne3 {[%clk 0:02:12]}  Rg8 {[%clk 0:01:21]} 17. Nf5 {[%clk 0:02:08]}  Bc5 {[%clk 0:01:14]} 18. Qf3 {[%clk 0:02:03]}  Rg6 {[%clk 0:01:01]} 19. Kh1 {[%clk 0:01:54]}  Rag8 {[%clk 0:00:59]} 20. g3 {[%clk 0:01:47]}  Bb6 {[%clk 0:00:46]} 21. h4 {[%clk 0:01:25]}  c5 {[%clk 0:00:43]} 22. c4 {[%clk 0:01:23]}  b4 {[%clk 0:00:25]} 23. Rfd1 {[%clk 0:01:12]}  Rd8 {[%clk 0:00:20]} 24. Be2 {[%clk 0:00:59]}  Rd4 {[%clk 0:00:13]} 25. Bd3 {[%clk 0:00:48]}  Qd8 {[%clk 0:00:04]} 26. Kh2 {[%clk 0:00:45]}  Bc8 {[%clk 0:00:03]} 27. Be2 {[%clk 0:00:28]}  Bxf5 {[%clk 0:00:02]} 28. exf5 {[%clk 0:00:26]}  Rg8 {[%clk 0:00:02]} 29. Qc6 {[%clk 0:00:24]}  Qc7 {[%clk 0:00:01]} 30. Qxf6+ {[%clk 0:00:23]}  Rg7 {[%clk 0:00:02]} 31. Rxd4 {[%clk 0:00:21]}  cxd4 {[%clk 0:00:02]} 32. Bd3 {[%clk 0:00:19]}  e4 {[%clk 0:00:02]} 33. Bxe4 {[%clk 0:00:19]}  d3 {[%clk 0:00:03]} 34. Qc6 {[%clk 0:00:05]}  Qe5 {[%clk 0:00:02]} 35. Qxb6 {[%clk 0:00:05]}  Qxb2 {[%clk 0:00:02]} 36. Rf1 {[%clk 0:00:03]}  Qe2 {[%clk 0:00:02]} 37. Bg2 {[%clk 0:00:03]}  d2 {[%clk 0:00:03]} 38. Qd8+ {[%clk 0:00:04]}  Rg8 {[%clk 0:00:03]} 39. Qd4+ {[%clk 0:00:04]}  Rg7 {[%clk 0:00:03]} 40. c5 {[%clk 0:00:04]}  b3 {[%clk 0:00:03]} 41. c6 {[%clk 0:00:04]}  b2 {[%clk 0:00:04]} 42. c7 {[%clk 0:00:05]}  h6 {[%clk 0:00:01]} 43. c8=Q+ {[%clk 0:00:05]}  Kh7 {[%clk 0:00:02]} 44. f6 {[%clk 0:00:05]}  Rg6 {[%clk 0:00:02]} 45. Qc7 {[%clk 0:00:05]}  Rxf6 {[%clk 0:00:02]} 46. Qxf6 {[%clk 0:00:05]} 1-0


[Site "https://www.chess.com"]

[Event "Titled Tuesday Blitz May 2 Early 2023"]
[White "Levitskiy, Andrey"]
[Black "Nguyen, Ngoc Truong Son"]
[WhiteFideId "14132885"]
[BlackFideId "12401110"]
[WhiteElo "2341"]
[BlackElo "2556"]
[Result "1/2-1/2"]
[Round "05"]
[TimeControl "180+2"]
[Date "2023.05.02"]
[WhiteClock "0:00:07"]
[BlackClock "0:00:05"]

1. e4 {[%clk 0:03:00]}  c5 {[%clk 0:02:58]} 2. Nf3 {[%clk 0:03:01]}  Nc6 {[%clk 0:02:57]} 3. d4 {[%clk 0:03:01]}  cxd4 {[%clk 0:02:58]} 4. Nxd4 {[%clk 0:03:01]}  e6 {[%clk 0:02:58]} 5. Nc3 {[%clk 0:03:01]}  a6 {[%clk 0:02:58]} 6. g3 {[%clk 0:02:59]}  Qc7 {[%clk 0:02:53]} 7. Bg2 {[%clk 0:03:00]}  b5 {[%clk 0:02:53]} 8. a3 {[%clk 0:02:57]}  Bb7 {[%clk 0:02:53]} 9. O-O {[%clk 0:02:58]}  Nf6 {[%clk 0:02:52]} 10. Nb3 {[%clk 0:02:47]}  h5 {[%clk 0:02:50]} 11. h3 {[%clk 0:02:41]}  h4 {[%clk 0:02:49]} 12. g4 {[%clk 0:02:41]}  Ne5 {[%clk 0:02:20]} 13. f4 {[%clk 0:02:33]}  Nc4 {[%clk 0:02:04]} 14. Qe2 {[%clk 0:02:02]}  e5 {[%clk 0:01:53]} 15. Nd5 {[%clk 0:01:54]}  Bxd5 {[%clk 0:01:47]} 16. exd5 {[%clk 0:01:55]}  Bd6 {[%clk 0:01:46]} 17. Kh1 {[%clk 0:01:23]}  O-O {[%clk 0:01:20]} 18. g5 {[%clk 0:01:22]}  Nh7 {[%clk 0:01:08]} 19. f5 {[%clk 0:01:19]}  e4 {[%clk 0:00:48]} 20. Qxe4 {[%clk 0:00:58]}  Bg3 {[%clk 0:00:44]} 21. Bf4 {[%clk 0:00:18]}  Bxf4 {[%clk 0:00:42]} 22. Qxf4 {[%clk 0:00:19]}  Qxf4 {[%clk 0:00:41]} 23. Rxf4 {[%clk 0:00:20]}  Nxg5 {[%clk 0:00:40]} 24. Rxh4 {[%clk 0:00:20]}  Rae8 {[%clk 0:00:32]} 25. Nd4 {[%clk 0:00:19]}  Re5 {[%clk 0:00:16]} 26. Rg1 {[%clk 0:00:19]}  Rfe8 {[%clk 0:00:14]} 27. Rg4 {[%clk 0:00:19]}  f6 {[%clk 0:00:14]} 28. h4 {[%clk 0:00:20]}  Nf7 {[%clk 0:00:14]} 29. Bf1 {[%clk 0:00:16]}  g5 {[%clk 0:00:13]} 30. Bxc4 {[%clk 0:00:11]}  bxc4 {[%clk 0:00:12]} 31. hxg5 {[%clk 0:00:12]}  fxg5 {[%clk 0:00:12]} 32. Nf3 {[%clk 0:00:12]}  Rxf5 {[%clk 0:00:07]} 33. Nxg5 {[%clk 0:00:12]}  Nxg5 {[%clk 0:00:06]} 34. Rxg5+ {[%clk 0:00:13]}  Rxg5 {[%clk 0:00:06]} 35. Rxg5+ {[%clk 0:00:14]}  Kf7 {[%clk 0:00:07]} 36. Rg4 {[%clk 0:00:14]}  Re1+ {[%clk 0:00:06]} 37. Rg1 {[%clk 0:00:10]}  Re2 {[%clk 0:00:06]} 38. Rg2 {[%clk 0:00:10]}  Rxg2 {[%clk 0:00:06]} 39. Kxg2 {[%clk 0:00:10]}  Kf6 {[%clk 0:00:07]} 40. Kf3 {[%clk 0:00:04]}  Ke5 {[%clk 0:00:07]} 41. Ke3 {[%clk 0:00:05]}  Kxd5 {[%clk 0:00:07]} 42. b3 {[%clk 0:00:04]}  cxb3 {[%clk 0:00:04]} 43. cxb3 {[%clk 0:00:04]}  Kc5 {[%clk 0:00:05]} 44. Kd3 {[%clk 0:00:05]}  d6 {[%clk 0:00:04]} 45. Kc3 {[%clk 0:00:05]}  d5 {[%clk 0:00:04]} 46. Kd3 {[%clk 0:00:05]}  a5 {[%clk 0:00:04]} 47. Kc3 {[%clk 0:00:04]}  d4+ {[%clk 0:00:04]} 48. Kd3 {[%clk 0:00:05]}  Kd5 {[%clk 0:00:05]} 49. b4 {[%clk 0:00:04]}  axb4 {[%clk 0:00:05]} 50. axb4 {[%clk 0:00:05]}  Ke5 {[%clk 0:00:04]} 51. b5 {[%clk 0:00:05]}  Kd5 {[%clk 0:00:04]} 52. b6 {[%clk 0:00:06]}  Kc6 {[%clk 0:00:04]} 53. Kxd4 {[%clk 0:00:07]}  Kxb6 {[%clk 0:00:05]} 1/2-1/2


[Site "https://www.chess.com"]